fUST/lending_fUST_20240923
["ID","MTS","AMOUNT","RATE_DAILY","PERIOD"]
[338921378,1727075453299,-500.0,0.00039041,120]
[338921379,1727075453307,-500.0,0.00039041,120]
[338921380,1727075453316,-500.0,0.00039041,120]
[338921381,1727075453325,-500.0,0.00039041,120]
[338921382,1727075453334,-500.0,0.00039041,120]
[338921383,1727075453343,-506.67931805,0.00039041,120]
[338921384,1727075453352,-500.0,0.00039041,120]
[338921385,1727075453361,-500.0,0.00039041,120]
[338921386,1727075453371,-500.0,0.00039041,120]
[338921387,1727075453380,-500.0,0.00039041,120]
[338921388,1727075453389,-500.0,0.00039041,120]
[338921389,1727075453399,-582.3309099,0.00039041,120]
[338921390,1727075453408,-500.0,0.00039041,120]
[338921391,1727075453417,-745.7,0.00039041,120]
[338921392,1727075453426,-500.0,0.00039041,120]
[338921393,1727075453436,-500.0,0.00039041,120]
[338921394,1727075453445,-500.0,0.00039041,120]
[338921395,1727075453454,-500.0,0.00039041,120]
[338921396,1727075453463,-616.23234852,0.00039041,120]
[338921397,1727075453472,-500.0,0.00039041,120]
[338921398,1727075453482,-500.0,0.00039041,120]
[338921399,1727075453491,-659.93,0.00039041,120]
[338921400,1727075453500,-151.0,0.00039041,120]
[338921401,1727075453509,-342.53510252,0.00039058,2]
[338921402,1727075453518,-151.0,0.00039178,14]
[338921403,1727075453527,-500.0,0.00039178,120]
[338921404,1727075453536,-505.15502338,0.00039178,120]
[338921405,1727075453545,-525.77671569,0.00039178,120]
[338921406,1727075453555,-506.80171117,0.00039178,120]
[338921407,1727075453564,-506.60412518,0.00039178,120]
[338921408,1727075453573,-500.0,0.00039178,120]
[338921409,1727075453583,-500.0,0.00039178,30]
[338921410,1727075453593,-500.0,0.00039178,7]
[338921411,1727075453605,-500.0,0.00039178,120]
[338921412,1727075453615,-500.0,0.00039178,120]
[338921413,1727075453624,-500.0,0.00039178,120]
[338921414,1727075453634,-511.08579992,0.00039178,120]
[338921415,1727075453645,-500.0,0.00039178,120]
[338921416,1727075453654,-500.0,0.00039178,120]
[338921417,1727075453663,-500.0,0.00039178,120]
[338921418,1727075453673,-500.0,0.00039178,120]
[338921419,1727075453682,-500.0,0.00039178,120]
[338921420,1727075453691,-1026.90236315,0.00039178,30]
[338921421,1727075453701,-500.0,0.00039178,120]
[338921422,1727075453710,-500.0,0.00039178,120]
[338921423,1727075453719,-500.0,0.00039178,120]
[338921424,1727075453729,-500.0,0.00039178,30]
[338921425,1727075453738,-500.0,0.00039178,120]
[338921426,1727075453747,-500.0,0.00039178,120]
[338921427,1727075453756,-500.0,0.00039178,120]
[338921428,1727075453766,-500.0,0.00039178,120]
[338921429,1727075453775,-588.40886746,0.00039178,120]
[338921430,1727075453784,-328.06691382,0.00039178,120]
[338921431,1727075453793,-500.0,0.00039178,30]
[338921432,1727075453802,-151.0,0.00039178,14]
[338921433,1727075453811,-509.25359985,0.00039178,120]
[338921434,1727075453821,-500.0,0.00039178,120]
[338921435,1727075453830,-500.0,0.00039178,120]
[338921436,1727075453839,-200.0,0.00039178,120]
[338921437,1727075453849,-500.0,0.00039178,7]
[338921438,1727075453858,-500.0,0.00039178,120]
[338921439,1727075453869,-500.0,0.00039178,120]
[338921440,1727075453878,-500.0,0.00039178,120]
[338921441,1727075453887,-560.17,0.00039178,120]
[338921442,1727075453897,-500.0,0.00039178,120]
[338921443,1727075453906,-503.06173715,0.00039178,120]
[338921444,1727075453915,-500.0,0.00039178,120]
[338921445,1727075453925,-500.0,0.00039178,120]
[338921446,1727075453935,-500.0,0.00039178,120]
[338921447,1727075453944,-507.3672141,0.00039178,120]
[338921448,1727075453954,-500.0,0.00039178,120]
[338921449,1727075453964,-542.96163449,0.00039178,120]
[338921450,1727075453974,-500.0,0.00039178,2]
[338921451,1727075453983,-500.0,0.00039178,120]
[338921452,1727075453992,-500.0,0.00039178,120]
[338921453,1727075454002,-500.0,0.00039178,120]
[338921454,1727075454011,-500.0,0.00039178,25]
[338921455,1727075454021,-502.81227457,0.00039178,120]
[338921456,1727075454030,-500.0,0.00039178,120]
[338921457,1727075454039,-500.0,0.00039178,120]
[338921458,1727075454048,-10594.71,0.00039178,18]
[338921459,1727075454058,-1497.37,0.00039178,21]
[338921460,1727075454067,-500.0,0.00039178,120]
[338921461,1727075454076,-500.0,0.00039178,120]
[338921462,1727075454086,-505.68053809,0.00039178,120]
[338921463,1727075454095,-507.19405057,0.00039178,120]
[338921464,1727075454105,-386.05233676,0.00039178,120]
[338921465,1727075454115,-500.0,0.00039178,120]
[338921466,1727075454127,-500.0,0.00039178,120]
[338921467,1727075454143,-500.0,0.00039178,120]
[338921468,1727075454152,-500.0,0.00039178,120]
[338921469,1727075454162,-500.0,0.00039178,120]
[338921470,1727075454171,-500.0,0.00039178,120]
[338921471,1727075454181,-500.0,0.00039178,120]
[338921472,1727075454190,-500.0,0.00039178,120]
[338921473,1727075454200,-188.13226606,0.00039178,120]
[338921474,1727075454209,-500.0,0.00039178,120]
[338921475,1727075454219,-500.0,0.00039178,120]
[338921476,1727075454228,-500.0,0.00039178,120]
[338921477,1727075454238,-745.7,0.00039178,120]
[338921478,1727075454248,-500.0,0.00039178,120]
[338921479,1727075454257,-500.0,0.00039178,120]
[338921480,1727075454266,-500.0,0.00039178,120]
[338921481,1727075454276,-500.0,0.00039178,120]
[338921482,1727075454286,-500.0,0.00039178,120]
[338921483,1727075454296,-500.0,0.00039178,120]
[338921484,1727075454305,-659.93,0.00039178,120]
[338921485,1727075454314,-151.0,0.00039315,14]
[338921486,1727075454324,-500.0,0.00039315,120]
[338921487,1727075454334,-500.0,0.00039315,30]
[338921488,1727075454343,-335.23362955,0.00039315,120]
[338921489,1727075454352,-500.0,0.00039315,7]
[338921490,1727075454362,-500.0,0.00039315,120]
[338921491,1727075454377,-500.0,0.00039315,120]
[338921492,1727075454386,-521.91819395,0.00039315,120]
[338921493,1727075454396,-500.0,0.00039315,120]
[338921494,1727075454405,-500.0,0.00039315,120]
[338921495,1727075454414,-500.0,0.00039315,120]
[338921496,1727075454423,-500.0,0.00039315,120]
[338921497,1727075454432,-500.0,0.00039315,120]
[338921498,1727075454442,-500.0,0.00039315,120]
[338921499,1727075454452,-500.0,0.00039315,120]
[338921500,1727075454461,-500.0,0.00039315,120]
[338921501,1727075454472,-500.0,0.00039315,30]
[338921502,1727075454481,-474.79831623,0.00039315,120]
[338921503,1727075454490,-500.0,0.00039315,120]
[338921504,1727075454500,-500.0,0.00039315,120]
[338921505,1727075454509,-500.0,0.00039315,120]
[338921506,1727075454519,-500.0,0.00039315,30]
[338921507,1727075454528,-295.04545517,0.00039315,120]
[338921508,1727075454537,-360.80376855,0.00039315,120]
[338921509,1727075454547,-202.3331585,0.00039315,120]
[338921510,1727075454556,-500.0,0.00039315,7]
[338921511,1727075454565,-500.0,0.00039315,120]
[338921512,1727075454575,-500.0,0.00039315,120]
[338921513,1727075454584,-500.0,0.00039315,120]
[338921514,1727075454593,-560.17,0.00039315,120]
[338921515,1727075454606,-500.0,0.00039315,120]
[338921516,1727075454617,-500.0,0.00039315,120]
[338921517,1727075454626,-500.0,0.00039315,120]
[338921518,1727075454635,-500.0,0.00039315,120]
[338921519,1727075454644,-260.72500843,0.00039315,120]
[338921520,1727075454655,-500.0,0.00039315,2]
[338921521,1727075454664,-500.0,0.00039315,120]
[338921522,1727075454674,-611.45855982,0.00039315,120]
[338921523,1727075454683,-204.07332159,0.00039315,120]
[338921524,1727075454693,-500.0,0.00039315,25]
[338921525,1727075454768,-500.0,0.00039315,120]
[338921526,1727075454778,-503.01151284,0.00039315,120]
[338921527,1727075454787,-10594.71,0.00039315,18]
[338921528,1727075454796,-1497.37,0.00039315,21]
[338921529,1727075454805,-500.0,0.00039315,120]
[338921530,1727075454814,-500.0,0.00039315,120]
[338921531,1727075454823,-500.0,0.00039315,120]
[338921532,1727075454831,-500.0,0.00039315,120]
[338921533,1727075454840,-500.0,0.00039315,120]
[338921534,1727075454849,-500.0,0.00039315,120]
[338921535,1727075454859,-500.0,0.00039315,120]
[338921536,1727075454869,-500.0,0.00039315,120]
[338921537,1727075454878,-500.0,0.00039315,120]
[338921538,1727075454887,-500.0,0.00039315,120]
[338921539,1727075454896,-505.56516495,0.00039315,120]
[338921540,1727075454905,-247.46973156,0.00039315,120]
[338921541,1727075454914,-500.0,0.00039315,120]
[338921542,1727075454923,-745.7,0.00039315,120]
[338921543,1727075454933,-156.64865891,0.00039315,120]
[338921544,1727075454942,-500.0,0.00039315,120]
[338921545,1727075454951,-500.0,0.00039315,120]
[338921546,1727075454961,-504.69533049,0.00039315,120]
[338921547,1727075454970,-500.0,0.00039315,120]
[338921548,1727075454979,-500.0,0.00039315,120]
[338921549,1727075454988,-659.93,0.00039315,120]
[338921550,1727075454997,-312.264526,0.00039452,14]
[338921551,1727075455006,-312.264526,0.00039452,14]
[338921552,1727075455015,-504.96799554,0.00039452,120]
[338921553,1727075455024,-500.0,0.00039452,30]
[338921554,1727075455033,-500.0,0.00039452,7]
[338921555,1727075455043,-500.0,0.00039452,120]
[338921556,1727075455052,-637.70133367,0.00039452,120]
[338921557,1727075455062,-500.0,0.00039452,120]
[338921558,1727075455071,-500.0,0.00039452,120]
[338921559,1727075455081,-505.60299171,0.00039452,120]
[338921560,1727075455090,-500.0,0.00039452,120]
[338921561,1727075455098,-500.0,0.00039452,120]
[338921562,1727075455108,-507.13456722,0.00039452,120]
[338921563,1727075455118,-500.0,0.00039452,120]
[338921564,1727075455127,-500.0,0.00039452,120]
[338921565,1727075455136,-500.0,0.00039452,30]
[338921566,1727075455145,-500.0,0.00039452,120]
[338921567,1727075455155,-500.0,0.00039452,120]
[338921568,1727075455164,-178.11607883,0.00039452,120]
[338921569,1727075455173,-500.0,0.00039452,30]
[338921570,1727075455182,-500.0,0.00039452,7]
[338921571,1727075455191,-507.13491182,0.00039452,120]
[338921572,1727075455200,-505.75465568,0.00039452,120]
[338921573,1727075455210,-531.19444964,0.00039452,120]
[338921574,1727075455219,-560.17,0.00039452,120]
[338921575,1727075455229,-509.01642911,0.00039452,120]
[338921576,1727075455238,-500.0,0.00039452,120]
[338921577,1727075455247,-500.0,0.00039452,120]
[338921578,1727075455256,-500.0,0.00039452,120]
[338921579,1727075455265,-500.0,0.00039452,2]
[338921580,1727075455274,-509.30041949,0.00039452,120]
[338921581,1727075455283,-500.0,0.00039452,25]
[338921582,1727075455292,-500.0,0.00039452,120]
[338921583,1727075455301,-10594.71,0.00039452,18]
[338921584,1727075455310,-1497.37,0.00039452,21]
[338921585,1727075455319,-527.77298987,0.00039452,120]
[338921586,1727075455329,-500.0,0.00039452,120]
[338921587,1727075455338,-500.0,0.00039452,120]
[338921588,1727075455347,-500.0,0.00039452,120]
[338921589,1727075455357,-500.0,0.00039452,120]
[338921590,1727075455367,-500.0,0.00039452,120]
[338921591,1727075455376,-500.0,0.00039452,120]
[338921592,1727075455386,-506.05957209,0.00039452,120]
[338921593,1727075455395,-506.30667034,0.00039452,120]
[338921594,1727075455405,-500.0,0.00039452,120]
[338921595,1727075455414,-500.0,0.00039452,120]
[338921596,1727075455424,-745.7,0.00039452,120]
[338921597,1727075455433,-500.0,0.00039452,120]
[338921598,1727075455442,-500.0,0.00039452,120]
[338921599,1727075455451,-427.64029099,0.00039452,120]
[338921600,1727075455461,-500.0,0.00039452,120]
[338921601,1727075455471,-659.93,0.00039452,120]
[338921602,1727075455480,-342.53510252,0.00039464,2]
[338921603,1727075455489,-500.0,0.00039589,30]
[338921604,1727075455498,-500.0,0.00039589,7]
[338921605,1727075455507,-504.80194884,0.00039589,120]
[338921606,1727075455517,-500.0,0.00039589,120]
[338921607,1727075455526,-254.32391523,0.00039589,120]
[338921608,1727075455535,-500.0,0.00039589,120]
[338921609,1727075455544,-500.0,0.00039589,120]
[338921610,1727075455553,-507.51847267,0.00039589,120]
[338921611,1727075455563,-502.95794582,0.00039589,120]
[338921612,1727075455572,-561.89105834,0.00039589,30]
[338921613,1727075455581,-533.57660913,0.00039589,120]
[338921614,1727075455594,-500.0,0.00039589,120]
[338921615,1727075455603,-500.0,0.00039589,30]
[338921616,1727075455612,-500.0,0.00039589,7]
[338921617,1727075455622,-560.17,0.00039589,120]
[338921618,1727075455632,-500.0,0.00039589,120]
[338921619,1727075455641,-514.54611044,0.00039589,120]
[338921620,1727075455650,-500.0,0.00039589,120]
[338921621,1727075455659,-500.0,0.00039589,2]
[338921622,1727075455670,-500.0,0.00039589,25]
[338921623,1727075455680,-500.0,0.00039589,120]
[338921624,1727075455689,-10594.71,0.00039589,18]
[338921625,1727075455698,-1497.37,0.00039589,21]
[338921626,1727075455707,-500.0,0.00039589,120]
[338921627,1727075455716,-510.77420947,0.00039589,120]
[338921628,1727075455725,-500.0,0.00039589,120]
[338921629,1727075455735,-500.0,0.00039589,120]
[338921630,1727075455744,-500.0,0.00039589,120]
[338921631,1727075455753,-500.0,0.00039589,120]
[338921632,1727075455763,-500.0,0.00039589,120]
[338921633,1727075455772,-500.0,0.00039589,120]
[338921634,1727075455781,-745.7,0.00039589,120]
[338921635,1727075455790,-474.58897007,0.00039589,120]
[338921636,1727075455799,-500.0,0.00039589,120]
[338921637,1727075455808,-500.0,0.00039589,120]
[338921638,1727075455817,-659.93,0.00039589,120]
[338921639,1727075455827,-150.03,0.000396,30]
[338921640,1727075455835,-1232.98820069,0.00039609,2]
[338921641,1727075455844,-388.30516904,0.00039726,30]
[338921642,1727075455854,-220.94096184,0.00039726,7]
[338921643,1727075455863,-500.0,0.00039726,120]
[338921644,1727075455873,-500.0,0.00039726,120]
[338921645,1727075455883,-496.73545446,0.00039726,120]
[338921646,1727075455892,-500.0,0.00039726,120]
[338921647,1727075455900,-500.0,0.00039726,30]
[338921648,1727075455909,-500.0,0.00039726,7]
[338921649,1727075455919,-560.17,0.00039726,120]
[338921650,1727075455928,-627.8207198,0.00039726,120]
[338921651,1727075455937,-500.0,0.00039726,120]
[338921652,1727075455946,-500.0,0.00039726,2]
[338921653,1727075455956,-500.0,0.00039726,25]
[338921654,1727075455966,-647.1508533,0.00039726,120]
[338921655,1727075455975,-10594.71,0.00039726,18]
[338921656,1727075455984,-1497.37,0.00039726,21]
[338921657,1727075455993,-281.66494421,0.00039726,120]
[338921658,1727075456002,-557.29613186,0.00039726,120]
[338921659,1727075456011,-500.0,0.00039726,120]
[338921660,1727075456020,-508.39248084,0.00039726,120]
[338921661,1727075456029,-500.0,0.00039726,120]
[338921662,1727075456038,-500.0,0.00039726,120]
[338921663,1727075456048,-500.0,0.00039726,120]
[338921664,1727075456058,-745.7,0.00039726,120]
[338921665,1727075456068,-500.0,0.00039726,120]
[338921666,1727075456078,-543.56974744,0.00039726,120]
[338921667,1727075456088,-659.93,0.00039726,120]
[338921668,1727075456098,-1500.0,0.00039731,5]
[338921669,1727075456107,-151.0,0.00039766,15]
[338921670,1727075456116,-621.95748073,0.00039776,120]
[338921671,1727075456126,-195.57,0.000398,14]
[338921672,1727075456135,-3570.3,0.000398,14]
[338921673,1727075456144,-2008.76,0.000398,14]
[338921674,1727075456153,-1554.58292816,0.000398,14]
[338921675,1727075456234,-4775.72310794,0.000398,14]
[338921676,1727075456260,-77.00779568,0.000398,14]
[338921677,1727075456475,-40.7143778,0.0003382,5]
[338921678,1727075456488,-259.54007911,0.0003382,5]
[338921679,1727075456497,-273.45509933,0.00038355,2]
[338921680,1727075456507,-500.0,0.00038493,120]
[338921681,1727075456516,-513.32188769,0.00038493,120]
[338921682,1727075456526,-500.0,0.0003863,120]
[338921683,1727075456535,-500.0,0.00038767,120]
[338921684,1727075456544,-500.0,0.00038904,120]
[338921685,1727075456553,-500.0,0.00039041,120]
[338921686,1727075456562,-500.0,0.00039178,120]
[338921687,1727075456571,-500.0,0.00039315,120]
[338921688,1727075456580,-500.0,0.00039452,120]
[338921689,1727075456591,-500.0,0.00039589,120]
[338921690,1727075456601,-500.0,0.00039726,120]
[338921691,1727075456610,-2311.25616822,0.000398,14]
[338921692,1727075456621,-800.0,0.00039808,10]
[338921693,1727075456630,-500.0,0.00039863,120]
[338921694,1727075456639,-457.74510977,0.00039863,120]
[338921695,1727075456649,-500.0,0.00039863,30]
[338921696,1727075456658,-500.0,0.00039863,7]
[338921697,1727075456667,-560.17,0.00039863,120]
[338921698,1727075456678,-500.0,0.00039863,120]
[338921699,1727075456688,-500.0,0.00039863,2]
[338921700,1727075456697,-500.0,0.00039863,25]
[338921701,1727075456706,-10594.71,0.00039863,18]
[338921702,1727075456715,-1497.37,0.00039863,21]
[338921703,1727075456724,-500.0,0.00039863,120]
[338921704,1727075456734,-500.0,0.00039863,120]
[338921705,1727075456744,-512.49852208,0.00039863,120]
[338921706,1727075456753,-500.0,0.00039863,120]
[338921707,1727075456762,-745.7,0.00039863,120]
[338921708,1727075456772,-500.0,0.00039863,120]
[338921709,1727075456781,-659.93,0.00039863,120]
[338921710,1727075456790,-342.53510252,0.0003987,2]
[338921711,1727075456799,-1168.809,0.0004,120]
[338921712,1727075456809,-396.243469,0.0004,120]
[338921713,1727075456818,-170.70312322,0.0004,120]
[338921714,1727075456828,-337.23025367,0.0004,120]
[338921715,1727075456838,-22006.14031983,0.0004,16]
[338921716,1727075456847,-2067.79046168,0.0004,30]
[338921717,1727075456856,-312.264526,0.0004,14]
[338921718,1727075456865,-312.264526,0.0004,14]
[338921719,1727075456877,-288.482062,0.0004,14]
[338921720,1727075456886,-377.17068383,0.0004,120]
[338921721,1727075456896,-500.0,0.0004,120]
[338921722,1727075456905,-500.0,0.0004,30]
[338921723,1727075456915,-500.0,0.0004,7]
[338921724,1727075456924,-560.17,0.0004,120]
[338921725,1727075456933,-500.0,0.0004,120]
[338921726,1727075456944,-500.0,0.0004,2]
[338921727,1727075456954,-500.0,0.0004,25]
[338921728,1727075456963,-10594.71,0.0004,18]
[338921729,1727075456973,-1497.37,0.0004,21]
[338921730,1727075456982,-500.0,0.0004,120]
[338921731,1727075456992,-500.0,0.0004,120]
[338921732,1727075457001,-500.0,0.0004,120]
[338921733,1727075457010,-745.7,0.0004,120]
[338921734,1727075457019,-500.0,0.0004,120]
[338921735,1727075457029,-659.93,0.0004,120]
[338921736,1727075457038,-500.0,0.00040136,120]
[338921737,1727075457047,-573.55719832,0.00040136,30]
[338921738,1727075457056,-500.0,0.00040136,7]
[338921739,1727075457064,-560.17,0.00040136,120]
[338921740,1727075457074,-500.0,0.00040136,120]
[338921741,1727075457083,-500.0,0.00040136,2]
[338921742,1727075457093,-500.0,0.00040136,25]
[338921743,1727075457102,-10594.71,0.00040136,18]
[338921744,1727075457112,-1497.37,0.00040136,21]
[338921745,1727075457122,-500.0,0.00040136,120]
[338921746,1727075457132,-500.0,0.00040136,120]
[338921747,1727075457141,-500.0,0.00040136,120]
[338921748,1727075457150,-745.7,0.00040136,120]
[338921749,1727075457159,-500.0,0.00040136,120]
[338921750,1727075457168,-659.93,0.00040136,120]
[338921751,1727075457178,-594.56878791,0.00040273,120]
[338921752,1727075457188,-500.0,0.00040273,7]
[338921753,1727075457198,-560.17,0.00040273,120]
[338921754,1727075457207,-500.0,0.00040273,120]
[338921755,1727075457216,-500.0,0.00040273,2]
[338921756,1727075457226,-500.0,0.00040273,25]
[338921757,1727075457235,-10594.71,0.00040273,18]
[338921758,1727075457245,-1497.37,0.00040273,21]
[338921759,1727075457254,-500.0,0.00040273,120]
[338921760,1727075457264,-500.0,0.00040273,120]
[338921761,1727075457274,-500.0,0.00040273,120]
[338921762,1727075457283,-745.7,0.00040273,120]
[338921763,1727075457292,-500.0,0.00040273,120]
[338921764,1727075457302,-659.93,0.00040273,120]
[338921765,1727075457311,-342.53510252,0.00040276,2]
[338921766,1727075457320,-153.0,0.00040356,2]
[338921767,1727075457330,-500.0,0.0004041,7]
[338921768,1727075457339,-560.17,0.0004041,120]
[338921769,1727075457349,-500.0,0.0004041,120]
[338921770,1727075457358,-500.0,0.0004041,2]
[338921771,1727075457368,-504.18080699,0.0004041,25]
[338921772,1727075457377,-10594.71,0.0004041,18]
[338921773,1727075457387,-1497.37,0.0004041,21]
[338921774,1727075457397,-500.0,0.0004041,120]
[338921775,1727075457406,-500.0,0.0004041,120]
[338921776,1727075457415,-500.0,0.0004041,120]
[338921777,1727075457425,-745.7,0.0004041,120]
[338921778,1727075457434,-500.0,0.0004041,120]
[338921779,1727075457444,-659.93,0.0004041,120]
[338921780,1727075457453,-2000.0,0.0004052,5]
[338921781,1727075457463,-500.0,0.00040547,7]
[338921782,1727075457473,-560.17,0.00040547,120]
[338921783,1727075457483,-500.0,0.00040547,120]
[338921784,1727075457492,-254.09007508,0.00040547,2]
[338921785,1727075457501,-10594.71,0.00040547,18]
[338921786,1727075457511,-1497.37,0.00040547,21]
[338921787,1727075457521,-500.0,0.00040547,120]
[338921788,1727075457530,-500.0,0.00040547,120]
[338921789,1727075457540,-500.0,0.00040547,120]
[338921790,1727075457549,-745.7,0.00040547,120]
[338921791,1727075457559,-500.0,0.00040547,120]
[338921792,1727075457568,-659.93,0.00040547,120]
[338921793,1727075457578,-342.53510252,0.00040682,2]
[338921794,1727075457589,-276.21262271,0.00040684,7]
[338921799,1727075511746,153.0,0.00027,2]
[338921834,1727076444123,-177.6887911,0.00027397,2]
[338921835,1727076495991,398.04703647,0.000123,2]
[338921836,1727076519348,10067.4362091,0.00014,2]
[338921837,1727076519778,1545.08216722,0.0001,2]
[338921838,1727076548123,-239.2075709,0.00027397,2]
[338921839,1727076548146,-1127.226099,0.00031621,2]
[338921840,1727076548169,-255.6061,0.00031752,30]
[338921841,1727076548190,-1127.226099,0.00032306,2]
[338921842,1727076548215,-172.030256,0.00032552,2]
[338921843,1727076548238,-172.030256,0.00032641,2]
[338921844,1727076548260,-172.030256,0.00032731,2]
[338921845,1727076548286,-172.030256,0.0003282,2]
[338921846,1727076548310,-172.030256,0.00032909,2]
[338921847,1727076548332,-1127.226099,0.00032991,2]
[338921848,1727076548355,-172.030256,0.00032999,2]
[338921849,1727076548376,-3000.0,0.00033,94]
[338921850,1727076548399,-3000.0,0.00033,91]
[338921851,1727076548422,-172.030256,0.00033088,2]
[338921852,1727076548443,-416.896362,0.00033165,2]
[338921853,1727076548468,-172.030256,0.00033177,2]
[338921854,1727076548492,-172.030256,0.00033266,2]
[338921855,1727076548515,-172.030256,0.00033356,2]
[338921856,1727076548538,-172.030256,0.00033445,2]
[338921857,1727076548559,-172.030256,0.00033534,2]
[338921858,1727076548581,-172.030256,0.00033624,2]
[338921859,1727076548603,-300.0,0.00033644,7]
[338921860,1727076548641,-500.0,0.00033644,7]
[338921861,1727076548668,-187.62392361,0.00033644,7]
[338921862,1727076548691,-479.26697369,0.00033645,2]
[338921863,1727076549133,-5468.04970191,0.00033645,2]
[338921864,1727076551124,-18952.6833244,0.00033645,2]
[338921865,1727076551149,-172.030256,0.00033713,2]
[338921866,1727076551170,-172.030256,0.00033802,2]
[338921867,1727076551193,-172.030256,0.00033891,2]
[338921868,1727076551215,-172.030256,0.00033981,2]
[338921869,1727076551236,-172.030256,0.0003407,2]
[338921870,1727076551258,-172.030256,0.00034159,2]
[338921871,1727076551281,-172.030256,0.00034249,2]
[338921872,1727076602828,300.0,0.00033391,2]
[338921960,1727076638748,-1779.35334599,0.00033392,103]
[338921962,1727076638761,-217.73665401,0.00033392,103]
[338921964,1727076638771,-150.0,0.00033392,14]
[338921966,1727076638781,-150.0,0.00033392,14]
[338921968,1727076638791,-200.0,0.00033392,14]
[338921970,1727076638801,-198.11932049,0.00033392,100]
[338921972,1727076638813,-981.19493176,0.00033392,100]
[338922095,1727076689700,1202.11278605,0.00025,30]
[338922096,1727076689726,2783.42721395,0.00025,30]
[338922099,1727076728789,1210.30575349,0.00033225,3]
[338922100,1727076741913,151.0,0.0003,120]
[338922101,1727076742474,151.0,0.00032082,120]
[338922102,1727076743405,151.0,0.00034164,120]
[338922103,1727076795668,5850.0,0.000216,2]
[338922108,1727077125682,1580.0,0.00025,120]
[338922119,1727077392229,150.0,0.000216,2]
[338922120,1727077500231,154.0,0.00025,120]
[338922122,1727077545217,-226.52785514,0.00023,8]
[338922123,1727077636098,-274.85061992,0.00023,8]
[338922124,1727077638112,-397.8185125,0.00023,8]
[338922126,1727077743326,700.48237236,0.0001,2]
[338922127,1727077746173,-1600.80301244,0.00023,8]
[338922128,1727077746193,-186.88754347,0.00026929,2]
[338922129,1727077746213,-464.147021,0.00027397,2]
[338922130,1727077746235,-169.089722,0.00029903,2]
[338922131,1727077746256,-400.0,0.00030146,2]
[338922132,1727077746277,-400.0,0.00030146,2]
[338922133,1727077746300,-3000.0,0.00030147,2]
[338922134,1727077746320,-1274.677606,0.00030147,2]
[338922135,1727077746340,-310.671049,0.00030262,2]
[338922136,1727077746360,-2440.1277069,0.00030349,2]
[338922137,1727077746387,-250.0,0.00030519,2]
[338922138,1727077746409,-250.0,0.00030603,2]
[338922139,1727077746430,-250.0,0.00030687,2]
[338922140,1727077746452,-250.0,0.0003077,2]
[338922141,1727077746473,-1274.677606,0.00030832,2]
[338922142,1727077746494,-250.0,0.00030854,2]
[338922143,1727077746519,-250.0,0.00030938,2]
[338922144,1727077746563,-250.0,0.00031022,2]
[338922145,1727077746613,-250.0,0.00031105,2]
[338922146,1727077746663,-250.0,0.00031189,2]
[338922147,1727077746711,-250.0,0.00031273,2]
[338922148,1727077746761,-250.0,0.00031356,2]